bitfinex/quotes_BTCUSD_20251001
["timestamp","ask_amount","ask_price","bid_price","bid_amount"]
[1759284824062,0.00527651,114510.0,114500.0,3.55106782]
[1759284824427,0.00527651,114510.0,114500.0,2.48494782]
[1759284824760,0.00527651,114510.0,114500.0,3.46030782]
[1759284825005,0.00527651,114510.0,114500.0,2.48494782]
[1759284825242,0.00527651,114510.0,114500.0,3.55106782]
[1759284825867,0.00527651,114510.0,114500.0,3.30194782]
[1759284826109,0.03148613,114510.0,114500.0,3.55106782]
[1759284828305,0.03148613,114510.0,114500.0,3.17854248]
[1759284828777,0.05477613,114510.0,114500.0,3.17854248]
[1759284830009,0.05477613,114510.0,114500.0,3.1875905]
[1759284830512,0.05477613,114510.0,114500.0,3.5514705]
[1759284832456,0.05477613,114510.0,114500.0,3.4606705]
[1759284832804,0.05477613,114510.0,114500.0,3.5514305]
[1759284837722,0.05477613,114510.0,114500.0,2.2318575]
[1759284837951,0.22943336,114510.0,114500.0,2.2549775]
[1759284838147,0.31881883,114510.0,114500.0,2.2549775]
[1759284838347,0.31881883,114510.0,114500.0,1.4430405]
[1759284838756,0.31881883,114510.0,114500.0,0.92856802]
[1759284838964,0.31881883,114510.0,114500.0,1.26836802]
[1759284839565,0.31881883,114510.0,114500.0,0.20232802]
[1759284839924,0.31881883,114510.0,114500.0,1.26836802]
[1759284840397,0.31881883,114510.0,114500.0,1.26236802]
[1759284841080,0.31881883,114510.0,114500.0,0.19632802]
[1759284841275,0.35714715,114510.0,114500.0,1.00428]
[1759284841518,0.35714715,114510.0,114500.0,1.25332]
[1759284841948,0.35714715,114510.0,114500.0,1.25832]
[1759284842291,0.35714715,114510.0,114500.0,1.25332]
[1759284842563,0.35714715,114510.0,114500.0,0.18728]
[1759284842759,0.35714715,114510.0,114500.0,1.2534]
[1759284842760,0.35814715,114510.0,114500.0,1.2534]
[1759284843385,0.34997073,114510.0,114500.0,1.2534]
[1759284843589,0.34997073,114510.0,114500.0,1.26223699]
[1759284846486,0.31981883,114510.0,114500.0,1.43690947]
[1759284848627,0.31981883,114510.0,114500.0,1.26223699]
[1759284849280,0.31981883,114510.0,114500.0,1.43690947]
[1759284850130,0.31981883,114510.0,114500.0,0.37078947]
[1759284850314,0.31981883,114510.0,114500.0,1.43690947]
[1759284852184,0.31981883,114510.0,114500.0,1.26231699]
[1759284852414,0.31981883,114510.0,114500.0,1.43698947]
[1759284852989,0.31981883,114510.0,114500.0,1.34618947]
[1759284853195,0.31981883,114510.0,114500.0,1.43698947]
[1759284854229,0.31981883,114510.0,114500.0,0.37078947]
[1759284854386,0.31981883,114510.0,114500.0,1.43698947]
[1759284855025,0.31981883,114510.0,114500.0,0.37078947]
[1759284855185,0.31981883,114510.0,114500.0,1.43698947]
[1759284857141,0.31981883,114510.0,114500.0,0.37078947]
[1759284857361,0.31981883,114510.0,114500.0,1.43698947]
[1759284857997,0.31981883,114510.0,114500.0,0.37078947]
[1759284858190,0.31981883,114510.0,114500.0,1.43698947]
[1759284858708,0.31981883,114510.0,114500.0,1.25348]
[1759284859554,0.31981883,114510.0,114500.0,0.18728]
[1759284859686,0.31981883,114510.0,114500.0,1.25348]
[1759284860532,0.31981883,114510.0,114500.0,1.25344]
[1759284862213,0.17467248,114500.0,114490.0,0.17468729]
[1759284862509,0.26911795,114500.0,114490.0,0.62868729]
[1759284862765,0.29240795,114500.0,114490.0,0.62868729]
[1759284863087,0.31862241,114500.0,114490.0,0.62868729]
[1759284863234,0.14394993,114500.0,114490.0,0.87764729]
[1759284863866,0.14394993,114500.0,114490.0,0.88264729]
[1759284864682,0.14394993,114500.0,114490.0,0.89888077]
[1759284865002,0.14494993,114500.0,114490.0,0.89888077]
[1759284865653,0.14494993,114500.0,114490.0,0.80808077]
[1759284865866,0.14494993,114500.0,114490.0,0.89888077]
[1759284867367,0.14494993,114500.0,114490.0,1.26208077]
[1759284869083,0.14494993,114500.0,114490.0,0.19592077]
[1759284869300,0.31962241,114500.0,114490.0,1.26208122]
[1759284869768,0.31962241,114500.0,114490.0,0.19592122]
[1759284869980,0.31962241,114500.0,114490.0,1.26204122]
[1759284870430,0.31962241,114500.0,114490.0,0.80804122]
[1759284870638,0.31962241,114500.0,114490.0,1.26204122]
[1759284871140,0.31962241,114500.0,114490.0,0.19592122]
[1759284871374,0.31962241,114500.0,114490.0,1.26204122]
[1759284874282,0.14494993,114500.0,114490.0,1.26204122]
[1759284875417,0.31962241,114500.0,114490.0,1.26204122]
[1759284880584,0.31962241,114500.0,114490.0,0.19592122]
[1759284880794,0.31962241,114500.0,114490.0,1.26200122]
[1759284881992,0.31962241,114500.0,114490.0,0.19592122]
[1759284882211,0.31962241,114500.0,114490.0,0.83843348]
[1759284882451,0.31962241,114500.0,114490.0,1.08731348]
[1759284885345,0.31962241,114500.0,114490.0,1.07108]
[1759284885760,0.31962241,114500.0,114490.0,0.8222]
[1759284885965,0.35795802,114500.0,114490.0,0.8222]
[1759284886165,0.35795802,114500.0,114490.0,1.07108]
[1759284886371,0.35795802,114500.0,114490.0,0.3682]
[1759284886580,0.35795802,114500.0,114490.0,1.07108]
[1759284888407,0.35795802,114500.0,114490.0,1.07104]
[1759284888825,0.35795413,114500.0,114490.0,1.07104]
[1759284893795,0.34977431,114500.0,114490.0,1.07104]
[1759284893940,0.3579492,114500.0,114490.0,1.07104]
[1759284894376,0.3579492,114500.0,114490.0,0.73148]
[1759284894619,0.3579492,114500.0,114490.0,1.07112]
[1759284894809,0.3579492,114500.0,114490.0,0.005]
[1759284895009,0.3579492,114500.0,114490.0,1.07112]
[1759284895482,0.3569492,114500.0,114490.0,1.06612]
[1759284895776,0.3609492,114500.0,114490.0,1.07612]
[1759284895928,0.3609492,114500.0,114490.0,1.06612]
[1759284896140,0.20483964,114490.0,114480.0,0.20131652]
[1759284896316,0.29921511,114490.0,114480.0,1.24601652]
[1759284896517,0.32209511,114490.0,114480.0,1.24601652]
[1759284896766,0.3483147,114490.0,114480.0,1.24601652]
[1759284897458,0.3483147,114490.0,114480.0,1.22956]
[1759284898189,0.3523147,114490.0,114480.0,1.22956]
[1759284898603,0.3523147,114490.0,114480.0,1.23956]
[1759284900739,0.36048734,114490.0,114480.0,0.99072]
[1759284900961,0.36048754,114490.0,114480.0,0.99072]
[1759284901155,0.36048754,114490.0,114480.0,1.23952]
[1759284901364,0.41814774,114490.0,114480.0,0.17344]
[1759284901570,0.36048754,114490.0,114480.0,0.17344]
[1759284901770,0.36048754,114490.0,114480.0,0.80336]
[1759284901999,0.35648754,114490.0,114480.0,0.79336]
[1759284902181,0.35648754,114490.0,114480.0,0.62992]
[1759284902408,0.36248754,114490.0,114480.0,0.62992]
[1759284902636,0.36248754,114490.0,114480.0,0.63392]
[1759284906966,0.35749754,114490.0,114480.0,0.63392]
[1759284907179,0.35945754,114490.0,114480.0,0.63392]
[1759284907394,0.36248754,114490.0,114480.0,0.63392]
[1759284912593,0.3493247,114490.0,114480.0,0.63392]
[1759284913084,0.3543147,114490.0,114480.0,0.63392]
[1759284913799,0.3543147,114490.0,114480.0,0.004]
[1759284914038,0.3543147,114490.0,114480.0,1.07016]
[1759284914275,0.3543147,114490.0,114480.0,0.72656]
[1759284914486,0.3543147,114490.0,114480.0,0.81736]
[1759284914859,0.174703,114480.0,114470.0,0.17471693]
[1759284915038,0.26907847,114480.0,114470.0,0.17471693]
[1759284915227,0.26907847,114480.0,114470.0,0.62879693]
[1759284915228,0.29195847,114480.0,114470.0,0.62879693]
[1759284915431,0.31817847,114480.0,114470.0,0.87759693]
[1759284916090,0.32317847,114480.0,114470.0,0.87759693]
[1759284916237,0.32317847,114480.0,114470.0,0.88859693]
[1759284916444,0.14847547,114480.0,114470.0,0.88859693]
[1759284916642,0.32317847,114480.0,114470.0,0.88859693]
[1759284917270,0.32317847,114480.0,114470.0,1.25187693]
[1759284917738,0.14847547,114480.0,114470.0,1.25187693]
[1759284918721,0.32317847,114480.0,114470.0,1.25187693]
[1759284919117,0.32317847,114480.0,114470.0,0.011]
[1759284919583,0.32317847,114480.0,114470.0,1.07712]
[1759284920020,0.32317847,114480.0,114470.0,0.011]
[1759284920246,0.32317847,114480.0,114470.0,1.07712]
[1759284920953,0.32317847,114480.0,114470.0,0.011]
[1759284921155,0.32317847,114480.0,114470.0,1.07712]
[1759284921683,0.32317847,114480.0,114470.0,1.25183826]
[1759284922302,0.32317847,114480.0,114470.0,1.07712]
[1759284923298,0.35333037,114480.0,114470.0,0.011]
[1759284923539,0.35333037,114480.0,114470.0,1.07712]
[1759284924070,0.35333037,114480.0,114470.0,0.011]
[1759284924201,0.35333037,114480.0,114470.0,1.07712]
[1759284925615,0.35333037,114480.0,114470.0,0.0908]
[1759284926869,0.35333037,114480.0,114470.0,0.33956]
[1759284927076,0.17471826,114470.0,114460.0,0.54388373]
[1759284927280,0.26613373,114470.0,114460.0,1.61000373]
[1759284927491,0.29354373,114470.0,114460.0,1.61000373]
[1759284927781,0.31976508,114470.0,114460.0,1.61000373]
[1759284928154,0.32676508,114470.0,114460.0,1.61005021]
[1759284928532,0.31976508,114470.0,114460.0,1.61005021]
[1759284929056,0.31976508,114470.0,114460.0,0.54793021]
[1759284929487,0.31976508,114470.0,114460.0,1.09930162]
[1759284929687,0.31976508,114470.0,114460.0,1.27403515]
[1759284929890,0.31976508,114470.0,114460.0,1.09930162]
[1759284930566,0.31976508,114470.0,114460.0,1.27403515]
[1759284938497,0.31976508,114470.0,114450.0,0.13088953]
[1759284938680,0.22740961,114470.0,114460.0,2.28039053]
[1759284938843,0.20118826,114470.0,114460.0,0.26553353]
[1759284939242,0.23038113,114470.0,114460.0,0.26553353]
[1759284939806,0.23038113,114470.0,114460.0,0.51421353]
[1759284940098,0.3197666,114470.0,114450.0,0.14088953]
[1759284940337,0.3197666,114470.0,114450.0,0.52474283]
[1759284940338,0.267089,114460.0,114450.0,0.52474283]
[1759284940554,0.09438547,114460.0,114450.0,2.37907983]
[1759284940764,0.11882547,114460.0,114450.0,2.37907983]
[1759284940973,0.14504857,114460.0,114450.0,2.40849704]
[1759284941179,0.14504857,114460.0,114450.0,2.39849704]
[1759284941993,0.15104857,114460.0,114450.0,2.39849704]
[1759284942351,0.15104857,114460.0,114450.0,2.40249704]
[1759284943001,0.14604857,114460.0,114450.0,2.40249704]
[1759284945411,0.3257821,114460.0,114450.0,2.063023]
[1759284945623,0.15104857,114460.0,114450.0,2.402503]
[1759284946699,0.15104857,114460.0,114450.0,2.063023]
[1759284946904,0.15104857,114460.0,114450.0,2.402503]
[1759284947247,0.15104857,114460.0,114450.0,3.129143]
[1759284947554,0.3257821,114460.0,114450.0,2.063023]
[1759284947959,0.3257821,114460.0,114450.0,3.129703]
[1759284951609,0.3257821,114460.0,114450.0,2.063023]
[1759284951737,0.3257821,114460.0,114450.0,3.129623]
[1759284952142,0.3257821,114460.0,114450.0,2.063023]
[1759284952366,0.3257821,114460.0,114450.0,3.129583]
[1759284955207,0.15104857,114460.0,114450.0,2.063023]
[1759284955412,0.15104857,114460.0,114450.0,3.129503]
[1759284958970,0.15104857,114460.0,114450.0,2.063023]
[1759284959184,0.15104857,114460.0,114450.0,3.129383]
[1759284960408,0.15104857,114460.0,114450.0,3.129503]
[1759284961670,0.3257821,114460.0,114450.0,2.063023]
[1759284961916,0.3257821,114460.0,114450.0,3.129463]
[1759284962458,0.3197821,114460.0,114450.0,3.129463]
[1759284962662,0.3197821,114460.0,114450.0,3.125463]
[1759284963545,0.3197821,114460.0,114450.0,2.059023]
[1759284963752,0.3197821,114460.0,114450.0,3.034623]
[1759284964160,0.3197821,114460.0,114450.0,2.066023]
[1759284964373,0.3197821,114460.0,114450.0,3.132383]
[1759284964879,0.3197821,114460.0,114450.0,3.125383]
[1759284965017,0.3197821,114460.0,114450.0,3.132383]
[1759284965431,0.3197821,114460.0,114450.0,1.89127421]
[1759284965795,0.3277821,114460.0,114450.0,3.125383]
[1759284965972,0.3277821,114460.0,114450.0,3.126383]
[1759284966425,0.3277821,114460.0,114450.0,2.95163421]
[1759284966718,0.3277821,114460.0,114450.0,3.126383]
[1759284966926,0.3277821,114460.0,114450.0,1.54527421]
[1759284967108,0.3277821,114460.0,114450.0,2.61159421]
[1759284968257,0.3277821,114460.0,114450.0,2.786343]
[1759284969076,0.3277821,114460.0,114450.0,2.61159421]
[1759284969257,0.3277821,114460.0,114450.0,1.54527421]
[1759284969449,0.3277821,114460.0,114450.0,2.61155421]
[1759284970109,0.357934,114460.0,114450.0,0.001]
[1759284970337,0.36612032,114460.0,114450.0,1.06724]
[1759284970974,0.36612032,114460.0,114450.0,0.81844]
[1759284971389,0.36612032,114460.0,114450.0,1.06724]
[1759284971787,0.357934,114460.0,114450.0,1.06728]
[1759284972000,0.349934,114460.0,114450.0,1.06628]
[1759284972320,0.357934,114460.0,114450.0,1.06628]
[1759284972525,0.357934,114460.0,114450.0,1.07428]
[1759284973152,0.371934,114460.0,114450.0,1.07428]
[1759284973524,0.349934,114460.0,114450.0,1.06624]
[1759284973972,0.353934,114460.0,114450.0,1.06624]
[1759284975052,0.20490069,114450.0,114440.0,0.47642355]
[1759284975252,0.29938616,114450.0,114440.0,1.54278355]
[1759284975463,0.32379616,114450.0,114440.0,1.54278355]
[1759284975812,0.35002545,114450.0,114440.0,0.47642355]
[1759284976018,0.35002545,114450.0,114440.0,1.54278355]
[1759284976639,0.35502545,114450.0,114440.0,1.54278355]
[1759284977213,0.35002545,114450.0,114440.0,1.54278355]
[1759284977819,0.35002545,114450.0,114440.0,1.54478355]
[1759284980176,0.34852545,114450.0,114440.0,1.54478355]
[1759284985783,0.34852545,114450.0,114440.0,1.45398355]
[1759284985991,0.34852545,114450.0,114440.0,1.54482355]
[1759284987706,0.34852545,114450.0,114440.0,0.47842355]
[1759284987923,0.34852545,114450.0,114440.0,1.54482355]
[1759284989843,0.34852545,114450.0,114440.0,1.54486355]
[1759284990388,0.34852545,114450.0,114440.0,0.47842355]
[1759284990609,0.34852545,114450.0,114440.0,1.54486355]
[1759284990792,0.34852545,114450.0,114440.0,0.47842355]
[1759284990996,0.34852545,114450.0,114440.0,1.54486355]
[1759284998906,0.34852545,114450.0,114440.0,1.34502827]
[1759285000108,0.14002476,114450.0,114440.0,1.51979233]
[1759285000748,0.14002476,114450.0,114440.0,1.85979233]
[1759285000953,0.11379547,114450.0,114440.0,1.85979233]
[1759285004102,0.02441,114450.0,114440.0,3.37464933]
[1759285005284,0.02441,114450.0,114440.0,3.37472933]
[1759285005874,0.02441,114450.0,114440.0,2.30820933]
[1759285006075,0.02441,114450.0,114440.0,3.37472933]
[1759285006823,0.02441,114450.0,114440.0,3.37468933]
[1759285007231,0.02441,114450.0,114440.0,3.44181854]
[1759285008571,0.02441,114450.0,114440.0,2.37533854]
[1759285008747,0.02441,114450.0,114440.0,3.44173854]
[1759285009748,0.02441,114450.0,114440.0,2.98749854]
[1759285010054,0.02441,114450.0,114440.0,3.44169854]
[1759285010979,0.02441,114450.0,114440.0,2.37533854]
[1759285011176,0.02441,114450.0,114440.0,3.44165854]
[1759285011709,0.02441,114450.0,114440.0,2.37533854]
[1759285011932,0.02441,114450.0,114440.0,3.44165854]
[1759285012354,0.02441,114450.0,114440.0,2.37533854]
[1759285012614,0.02441,114450.0,114440.0,3.35081854]
[1759285012830,0.02441,114450.0,114440.0,3.44165854]
[1759285013602,0.02441,114450.0,114440.0,3.1962424]
[1759285015246,0.02441,114450.0,114440.0,3.1054024]
[1759285015690,0.02441,114450.0,114440.0,3.1962424]
[1759285015886,0.02441,114450.0,114440.0,2.1299224]
[1759285016044,0.02441,114450.0,114440.0,2.98655027]
[1759285018352,0.02441,114450.0,114440.0,1.92023027]
[1759285018554,0.02441,114450.0,114440.0,2.98639027]
[1759285018731,0.02441,114450.0,114440.0,2.89559027]
[1759285018868,0.02441,114450.0,114440.0,2.98639027]
[1759285019081,0.02441,114450.0,114440.0,1.92023027]
[1759285019289,0.02441,114450.0,114440.0,2.89559027]
[1759285019487,0.02441,114450.0,114440.0,2.98639027]
[1759285022274,0.02441,114450.0,114440.0,1.92023027]
[1759285022486,0.02441,114450.0,114440.0,2.98639027]
[1759285023658,0.02441,114450.0,114440.0,1.92023027]
[1759285023909,0.02441,114450.0,114440.0,2.98639027]
[1759285024638,0.02441,114450.0,114440.0,1.92023027]
[1759285024783,0.02441,114450.0,114440.0,2.98639027]
[1759285025178,0.02441,114450.0,114440.0,1.92023027]
[1759285025401,0.0264,114450.0,114440.0,1.92023027]
[1759285025594,0.02441,114450.0,114440.0,1.92023027]
[1759285025800,0.02441,114450.0,114440.0,3.32639027]
[1759285026633,0.02441,114450.0,114440.0,2.26023027]
[1759285027014,0.02441,114450.0,114440.0,3.32639027]
[1759285027447,0.02441,114450.0,114440.0,3.33639027]
[1759285027726,0.02841,114450.0,114440.0,3.33639027]
[1759285030239,0.02841,114450.0,114440.0,2.27023027]
[1759285030459,0.02841,114450.0,114440.0,3.33639027]
[1759285031528,0.02841,114450.0,114440.0,3.40336826]
[1759285031746,0.02841,114450.0,114440.0,3.49275373]
[1759285031944,0.02841,114450.0,114440.0,3.03863373]
[1759285032118,0.02841,114450.0,114440.0,3.49275373]
[1759285032931,0.02841,114450.0,114440.0,3.03863373]
[1759285033135,0.02841,114450.0,114440.0,3.49275373]
[1759285035203,0.02841,114450.0,114440.0,3.03863373]
[1759285035362,0.02841,114450.0,114440.0,3.49275373]
[1759285038521,0.02841,114450.0,114440.0,3.51897192]
[1759285044137,0.02841,114450.0,114440.0,3.51885192]
[1759285046311,0.02841,114450.0,114440.0,3.42805192]
[1759285046528,0.02841,114450.0,114440.0,3.51885192]
[1759285047771,0.02841,114450.0,114440.0,2.45281192]
[1759285047919,0.02841,114450.0,114440.0,3.51885192]
[1759285051078,0.07295609,114480.0,114470.0,0.51471826]
[1759285051278,0.16234156,114480.0,114470.0,2.36901526]
[1759285052130,0.09338547,114480.0,114470.0,2.36901526]
[1759285052421,0.10538547,114480.0,114470.0,2.36901526]
[1759285052813,0.08938547,114480.0,114470.0,2.36901526]
[1759285052990,0.09938547,114480.0,114470.0,2.37101526]
[1759285053191,0.03465,114480.0,114470.0,2.43697363]
[1759285053622,0.0346965,114480.0,114470.0,2.43697363]
[1759285054644,0.0346965,114480.0,114470.0,3.16353363]
[1759285055948,0.0346965,114480.0,114470.0,2.09753363]
[1759285056157,0.0346965,114480.0,114470.0,3.16353363]
[1759285056464,0.0346965,114480.0,114470.0,2.09753363]
[1759285056668,0.0346965,114480.0,114470.0,3.16353363]
[1759285058772,0.0346965,114480.0,114470.0,2.09753363]
[1759285058979,0.0399265,114480.0,114470.0,2.09753363]
[1759285059630,0.0399265,114480.0,114470.0,3.16345363]
[1759285061230,0.0399265,114480.0,114470.0,2.09753363]
[1759285061456,0.0399265,114480.0,114470.0,3.16345363]
[1759285061695,0.0399265,114480.0,114470.0,2.09753363]
[1759285061937,0.0399265,114480.0,114470.0,3.16345363]
[1759285062799,0.0399265,114480.0,114470.0,2.64873537]
[1759285062928,0.0399265,114480.0,114470.0,2.82345363]
[1759285070200,0.0399265,114480.0,114470.0,2.82341363]
[1759285070397,0.0399265,114480.0,114470.0,2.59030163]
[1759285070818,0.0368365,114480.0,114470.0,2.59030163]
[1759285071025,0.0400265,114480.0,114470.0,2.59030163]
[1759285073763,0.0400265,114480.0,114470.0,1.52442163]
[1759285073976,0.0400265,114480.0,114470.0,2.59030163]
[1759285075529,0.0346965,114480.0,114470.0,2.59030163]
[1759285076128,0.0398665,114480.0,114470.0,2.59030163]
[1759285076455,0.0346965,114480.0,114470.0,2.59030163]
[1759285076636,0.0398665,114480.0,114470.0,2.59030163]
[1759285077647,0.0346965,114480.0,114470.0,2.59030163]
[1759285078078,0.0366765,114480.0,114470.0,2.59030163]
[1759285078221,0.0398665,114480.0,114470.0,2.59030163]
[1759285078627,0.0398665,114480.0,114470.0,1.52442163]
[1759285078839,0.0398665,114480.0,114470.0,2.41081248]
[1759285081985,0.0398665,114480.0,114470.0,2.4773861]
[1759285082729,0.0398665,114480.0,114470.0,1.4115461]
[1759285082938,0.0398665,114480.0,114470.0,2.4773861]
[1759285085243,0.0398665,114480.0,114470.0,1.4115461]
[1759285085450,0.0398665,114480.0,114470.0,2.4773861]
[1759285086750,0.0398665,114480.0,114470.0,1.4115461]
[1759285086952,0.30395497,114480.0,114470.0,2.52230326]
[1759285087342,0.33017263,114480.0,114470.0,2.52230326]
[1759285088819,0.15546963,114480.0,114470.0,2.52230326]
[1759285100318,0.33017263,114480.0,114470.0,2.52226326]
[1759285100617,0.15546963,114480.0,114470.0,2.52226326]
[1759285101023,0.15546963,114480.0,114470.0,2.06822326]
[1759285101237,0.15546963,114480.0,114470.0,2.52226326]
[1759285101460,0.33017263,114480.0,114470.0,2.43146326]
[1759285101635,0.33017263,114480.0,114470.0,2.52226326]
[1759285102294,0.33017263,114480.0,114470.0,1.45646326]
[1759285102523,0.33017263,114480.0,114470.0,2.52226326]
[1759285104889,0.15546963,114480.0,114470.0,2.52226326]
[1759285105829,0.33017263,114480.0,114470.0,2.52226326]
[1759285107447,0.33017263,114480.0,114470.0,2.18294326]
[1759285107648,0.33017263,114480.0,114470.0,2.52222326]
[1759285108399,0.33017263,114480.0,114470.0,1.45646326]
[1759285108619,0.33017263,114480.0,114470.0,2.52222326]
[1759285109885,0.33017263,114480.0,114470.0,1.45646326]
[1759285110090,0.33017263,114480.0,114470.0,2.52222326]
[1759285111710,0.15227963,114480.0,114470.0,2.52222326]
[1759285113072,0.15227963,114480.0,114470.0,2.33758026]
[1759285113935,0.33013263,114480.0,114470.0,2.33758026]
[1759285114314,0.15542963,114480.0,114470.0,2.33758026]
[1759285114753,0.15227963,114480.0,114470.0,2.33758026]
[1759285115681,0.15029963,114480.0,114470.0,2.33758026]
[1759285116738,0.06091416,114480.0,114470.0,2.40325686]
[1759285117182,0.06091416,114480.0,114470.0,1.33749686]
[1759285117383,0.06091416,114480.0,114470.0,2.40325686]
[1759285117506,0.06091416,114480.0,114470.0,1.33749686]
[1759285117720,0.06091416,114480.0,114470.0,2.40325686]
[1759285118188,0.06091416,114480.0,114470.0,2.1885186]
[1759285118391,0.06091416,114480.0,114470.0,1.29747686]
[1759285118597,0.06091416,114480.0,114470.0,2.36323686]
[1759285120752,0.0346965,114480.0,114470.0,1.29747686]
[1759285120953,0.0346965,114480.0,114470.0,2.36319686]
[1759285121156,0.0346965,114480.0,114470.0,1.29747686]
[1759285121388,0.0346965,114480.0,114470.0,2.36319686]
[1759285122397,0.0346965,114480.0,114470.0,2.032002]
[1759285122597,0.0346965,114480.0,114470.0,2.122802]
[1759285122821,0.0346965,114480.0,114470.0,2.29752026]
[1759285123846,0.0346965,114480.0,114470.0,2.20672026]
[1759285124028,0.0346965,114480.0,114470.0,2.29752026]
[1759285124391,0.0346965,114480.0,114470.0,1.23180026]
[1759285124602,0.0346965,114480.0,114470.0,2.07129226]
[1759285125047,0.0346965,114480.0,114470.0,1.61725226]
[1759285125242,0.0346965,114480.0,114470.0,2.07129226]
[1759285126567,0.0346965,114480.0,114470.0,2.13722442]
[1759285127206,0.0346965,114480.0,114470.0,1.68318442]
[1759285127409,0.0346965,114480.0,114470.0,2.04642442]
[1759285127607,0.06091146,114480.0,114470.0,2.13722442]
[1759285128134,0.06091146,114480.0,114470.0,1.07150442]
[1759285128323,0.06091146,114480.0,114470.0,2.13722442]
[1759285128994,0.06091146,114480.0,114470.0,1.07150442]
[1759285129174,0.06091146,114480.0,114470.0,2.13722442]
[1759285130108,0.06091146,114480.0,114470.0,2.13718442]
[1759285132684,0.06091146,114480.0,114470.0,1.07150442]
[1759285132911,0.06091146,114480.0,114470.0,2.13718442]
[1759285139013,0.15242693,114480.0,114470.0,1.07150442]
[1759285139215,0.33035993,114480.0,114470.0,2.04634442]
[1759285139417,0.33035993,114480.0,114470.0,2.13714442]
[1759285140302,0.33035993,114480.0,114470.0,2.07121226]
[1759285143309,0.33035993,114480.0,114470.0,1.00557226]
[1759285143513,0.33035993,114480.0,114470.0,2.07121226]
[1759285144492,0.33035993,114480.0,114470.0,1.557334]
[1759285144729,0.33035993,114480.0,114470.0,1.896494]
[1759285145575,0.33035993,114480.0,114470.0,2.07121226]
[1759285146151,0.15029693,114480.0,114470.0,2.07121226]
[1759285147774,0.15029693,114480.0,114470.0,1.92033626]
[1759285148213,0.32499993,114480.0,114470.0,1.92033626]
[1759285148432,0.33035993,114480.0,114470.0,1.92033626]
[1759285148644,0.33035993,114480.0,114470.0,0.85469626]
[1759285148866,0.33035993,114480.0,114470.0,1.92033626]
[1759285150020,0.15242693,114480.0,114470.0,1.92033626]
[1759285150730,0.32712993,114480.0,114470.0,1.92033626]
[1759285151492,0.33035993,114480.0,114470.0,1.92033626]
[1759285151694,0.33035993,114480.0,114470.0,0.679978]
[1759285151901,0.33035993,114480.0,114470.0,1.92033626]
[1759285153145,0.33035993,114480.0,114470.0,0.85469626]
[1759285153325,0.33035993,114480.0,114470.0,1.92033626]
[1759285154811,0.33035993,114480.0,114470.0,0.679978]
[1759285155023,0.33035993,114480.0,114470.0,1.92029626]
[1759285160130,0.33035993,114480.0,114470.0,0.679978]
[1759285160266,0.33035993,114480.0,114470.0,1.745658]
[1759285161505,0.46199984,114480.0,114470.0,0.679978]
[1759285161701,0.83215174,114480.0,114470.0,1.130808]
[1759285161896,0.83215174,114480.0,114470.0,0.7024]
[1759285162120,0.85715174,114480.0,114470.0,0.7024]
[1759285162457,0.72369079,114480.0,114470.0,0.7024]
[1759285162663,0.78882193,114480.0,114470.0,0.7024]
[1759285162895,0.74369079,114480.0,114470.0,0.7024]
[1759285163107,0.81369079,114480.0,114470.0,0.7024]
[1759285163734,0.84074575,114480.0,114470.0,0.7024]
[1759285163949,0.81369079,114480.0,114470.0,0.7024]
[1759285164590,0.82569079,114480.0,114470.0,0.7024]
[1759285166356,0.20490069,114450.0,114440.0,0.5268]
[1759285166563,0.29949616,114450.0,114440.0,0.16348]
[1759285166768,0.32330616,114450.0,114440.0,1.22924]
[1759285166963,0.32330616,114450.0,114440.0,0.5268]
[1759285167212,0.34953666,114450.0,114440.0,1.22924]
[1759285168536,0.34953666,114450.0,114440.0,1.23224]
[1759285170121,0.34953666,114450.0,114440.0,1.22924]
[1759285170682,0.35653666,114450.0,114440.0,1.22924]
[1759285172134,0.35653666,114450.0,114440.0,1.06576]
[1759285175312,0.20493124,114430.0,114420.0,0.00191]
[1759285175526,0.29431671,114430.0,114420.0,0.7026]
[1759285175726,0.32015671,114430.0,114420.0,0.7026]
[1759285175855,0.32333671,114430.0,114420.0,0.7026]
[1759285176060,0.34957083,114430.0,114420.0,0.7026]
[1759285176262,0.31420893,114430.0,114420.0,0.70459]
[1759285176583,0.31420893,114430.0,114420.0,0.70463652]
[1759285176748,0.32141893,114430.0,114420.0,0.72264652]
[1759285176959,0.32141893,114430.0,114420.0,1.08604652]
[1759285177638,0.31620893,114430.0,114420.0,1.26283113]
[1759285177862,0.31620893,114430.0,114420.0,1.26536113]
[1759285178067,0.31620893,114430.0,114420.0,1.26084113]
[1759285178311,0.31620893,114430.0,114420.0,1.26283113]
[1759285178523,0.31823893,114430.0,114420.0,1.26283113]
[1759285178947,0.14345959,114430.0,114420.0,1.26283113]
[1759285179136,0.14142959,114430.0,114420.0,1.26283113]
[1759285179368,0.05204412,114430.0,114420.0,1.26536113]
[1759285179578,0.03613003,114430.0,114420.0,1.94208913]
[1759285179790,0.00989591,114430.0,114420.0,1.94208913]
[1759285180167,0.00989591,114430.0,114420.0,1.21608913]
[1759285180811,0.00989591,114430.0,114420.0,2.28208913]
[1759285181818,0.00989591,114430.0,114420.0,2.19124913]
[1759285182024,0.00989591,114430.0,114420.0,2.28208913]
[1759285182670,0.00989591,114430.0,114420.0,1.21608913]
[1759285182890,0.00989591,114430.0,114420.0,2.28208913]
[1759285183275,0.00989591,114430.0,114420.0,2.19124913]
[1759285183622,0.00989591,114430.0,114420.0,1.21608913]
[1759285183780,0.00989591,114430.0,114420.0,2.28208913]
[1759285185185,0.00989591,114430.0,114420.0,1.21608913]
[1759285185425,0.00989591,114430.0,114420.0,2.28208913]
[1759285188733,0.00989591,114430.0,114420.0,1.21608913]
[1759285188941,0.00989591,114430.0,114420.0,2.28208913]
[1759285190666,0.00989591,114430.0,114420.0,2.19124913]
[1759285190853,0.00989591,114430.0,114420.0,2.28208913]
[1759285193786,0.00989591,114430.0,114420.0,2.30831245]
[1759285194015,0.00989591,114430.0,114420.0,2.39769792]
[1759285194844,0.00989591,114430.0,114420.0,2.3714746]
[1759285195249,0.00989591,114430.0,114420.0,1.3054746]
[1759285195386,0.00989591,114430.0,114420.0,2.3714346]
[1759285195597,0.00989591,114430.0,114420.0,1.3054746]
[1759285195985,0.00989591,114430.0,114420.0,2.3713546]
[1759285196814,0.00989591,114430.0,114420.0,1.3054746]
[1759285197061,0.00989591,114430.0,114420.0,2.3713546]
[1759285197804,0.00989591,114430.0,114420.0,1.57944913]
[1759285198036,0.00989591,114430.0,114420.0,1.21355913]
[1759285198284,0.00989591,114430.0,114420.0,2.28196913]
[1759285198701,0.00989591,114430.0,114420.0,1.21608913]
[1759285198903,0.00989591,114430.0,114420.0,2.28196913]
[1759285199109,0.00989591,114430.0,114420.0,2.19112913]
[1759285199319,0.00989591,114430.0,114420.0,2.28196913]
[1759285199736,0.00989591,114430.0,114420.0,1.21608913]